[Event "Centenario Panaderia Pulido 2023"]
[Site "San Mateo Gran Canaria"]
[Date "2023.12.08"]
[Round "7.15"]
[White "Cruz Pino, Adrian"]
[Black "Rivero Tacoronte, Gabriel"]
[Result "0-1"]
[ECO "A11"]
[WhiteElo "2048"]
[BlackElo "1695"]
[Annotator "NA RC"]
[PlyCount "44"]
[EventDate "2023.12.04"]
[EventType "swiss"]
[EventCountry "ESP"]
[SourceTitle "playchess.com"]
[Source "ChessBase"]
[SourceQuality "1"]
[TimeControl "5400+30"]

1. c4 {[%emt 0:01:47]} c6 {[%emt 0:00:05]} 2. Nf3 {[%emt 1:29:43]} d5 {[%emt 0:00:07]} 3. e3 {[%emt 0:00:00]} Nf6 {[%emt 0:00:14]} 4. Nc3 {[%emt 0:01:00]} Bf5 {[%emt 0:04:28]} 5. Qb3 {[%emt 0:00:30]} Qb6 {[%emt 0:07:30]} 6. Qa4 {[%emt 0:00:00]} Na6 {[%emt 0:08:44]} 7. cxd5 {[%emt 0:00:00]} Nb4 {[%emt 0:00:42]} 8. Nd4 {[%emt 0:00:00]} Bd7 {[%emt 0:11:28]} 9. dxc6 {[%emt 0:00:00]} bxc6 {[%emt 0:00:04]} 10. Qd1 {[%emt 0:00:00]} e5 {[%emt 0:04:11]} 11. Nc2 {[%emt 0:00:00]} Bf5 {[%emt 0:58:27]} 12. Nxb4 {[%emt 0:00:00]} Bxb4 {[%emt 0:00:30]} 13. Bc4 {[%emt 0:04:00]} O-O {[%emt 0:00:00]} 14. d3 {[%emt 0:00:00]} Rad8 {[%emt 0:00:00]} 15. Qc2 {[%emt 0:00:00]} Qc5 {[%emt 0:00:00]} 16. Qe2 {[%emt 0:00:00]} Bxc3+ {[%emt 0:00:00]} 17. bxc3 {[%emt 0:00:00]} Bxd3 {[%emt 0:00:00]} 18. Bxd3 {[%emt 0:00:00]} Qxc3+ {[%emt 0:00:00]} 19. Qd2 {[%emt 0:00:00]} Qxa1 {[%emt 0:00:00]} 20. O-O {[%emt 0:00:00]} e4 {[%emt 0:00:00]} 21. Ba3 {[%emt 0:00:00]} Qe5 {[%emt 0:00:00]} 22. Bxf8 {[%emt 0:00:00]} Kxf8 {[%emt 0:00:00]} 0-1

[Event "Centenario Panaderia Pulido 2023"]
[Site "San Mateo Gran Canaria"]
[Date "2023.12.08"]
[Round "8.1"]
[White "Korneev, Oleg"]
[Black "Doluhanova, Evgeniya"]
[Result "1/2-1/2"]
[ECO "C67"]
[WhiteElo "2470"]
[BlackElo "2177"]
[Annotator "RC"]
[PlyCount "75"]
[EventDate "2023.12.04"]
[EventType "swiss"]
[EventCountry "ESP"]
[SourceTitle "playchess.com"]
[Source "ChessBase"]
[SourceQuality "1"]
[TimeControl "5400+30"]

1. e4 {[%emt 0:00:04]} e5 {[%emt 0:02:48]} 2. Nf3 {[%emt 0:00:05]} Nc6 {[%emt 0:00:02]} 3. Bb5 {[%emt 0:00:06]} Nf6 {[%emt 0:00:05]} 4. O-O {[%emt 0:00:05]} Nxe4 {[%emt 0:00:02]} 5. d4 {[%emt 0:00:06]} Nd6 {[%emt 0:00:03]} 6. Bxc6 {[%emt 0:00:06]} dxc6 {[%emt 0:00:02]} 7. dxe5 {[%emt 0:00:07]} Nf5 {[%emt 0:00:02]} 8. Qxd8+ {[%emt 0:00:11]} Kxd8 {[%emt 0:00:06]} 9. h3 {[%emt 0:00:22]} Be7 {[%emt 0:00:36]} 10. Nc3 {[%emt 0:00:42]} Nh4 {[%emt 0:01:09]} 11. Nxh4 {[%emt 0:00:03]} Bxh4 {[%emt 0:00:05]} 12. Be3 {[%emt 0:00:09]} Ke8 {[%emt 0:03:20]} 13. Rad1 {[%emt 0:02:51]} b6 {[%emt 0:00:44]} 14. Ne2 {[%emt 0:03:07]} c5 {[%emt 0:07:59]} 15. Nf4 {[%emt 0:02:37]} Bf5 {[%emt 0:02:04]} 16. c4 {[%emt 0:02:40]} h5 {[%emt 0:05:49]} 17. f3 {[%emt 0:09:26]} Rd8 {[%emt 0:06:31]} 18. g4 {[%emt 0:02:00]} Rxd1 {[%emt 0:00:42]} 19. Rxd1 {[%emt 0:00:03]} hxg4 {[%emt 0:00:28]} 20. hxg4 {[%emt 0:00:07]} Bc8 {[%emt 0:04:05]} 21. Kg2 {[%emt 0:01:21]} Be7 {[%emt 0:05:32]} 22. b3 {[%emt 0:02:49]} Bb7 {[%emt 0:11:08]} 23. Nd5 {[%emt 0:25:25]} Bd8 {[%emt 0:03:17]} 24. Bf4 {[%emt 0:01:04]} Rf8 {[%emt 0:09:12]} 25. a4 {[%emt 0:04:52]} Bc6 {[%emt 0:00:47]} 26. Bg3 {[%emt 0:02:12]} Rh8 {[%emt 0:03:11]} 27. Bf4 {[%emt 0:09:00]} Rf8 {[%emt 0:00:12]} 28. Rh1 {[%emt 0:02:41]} Kd7 {[%emt 0:08:41]} 29. Bg3 {[%emt 0:03:05]} Bxd5 {[%emt 0:10:48]} 30. cxd5 {[%emt 0:00:14]} c6 {[%emt 0:00:06]} 31. dxc6+ {[%emt 0:05:17]} Kxc6 {[%emt 0:00:05]} 32. f4 {[%emt 0:00:13]} g6 {[%emt 0:04:53]} 33. Kf3 {[%emt 0:09:29]} a6 {[%emt 0:00:28]} 34. Ke4 {[%emt 0:03:31]} b5 {[%emt 0:03:02]} 35. axb5+ {[%emt 0:00:10]} Kxb5 {[%emt 0:01:16]} 36. Rd1 {[%emt 0:01:30]} Bc7 {[%emt 0:02:12]} 37. f5 {[%emt 0:02:15]} gxf5+ {[%emt 0:01:14]} 38. gxf5 {[%emt 0:02:47]} 1/2-1/2

[Event "Centenario Panaderia Pulido 2023"]
[Site "San Mateo Gran Canaria"]
[Date "2023.12.08"]
[Round "8.2"]
[White "Strikovic, Aleksa"]
[Black "Oudeh Mishmesh, Omar"]
[Result "1/2-1/2"]
[ECO "A28"]
[WhiteElo "2455"]
[BlackElo "2247"]
[Annotator "RC"]
[PlyCount "104"]
[EventDate "2023.12.04"]
[EventType "swiss"]
[EventCountry "ESP"]
[SourceTitle "playchess.com"]
[Source "ChessBase"]
[SourceQuality "1"]
[TimeControl "5400+30"]

1. c4 {[%emt 0:01:30]} e5 {[%emt 0:00:09]} 2. Nc3 {[%emt 0:00:38]} Nf6 {[%emt 0:00:22]} 3. Nf3 {[%emt 0:00:48]} Nc6 {[%emt 0:00:07]} 4. d4 {[%emt 0:01:07]} exd4 {[%emt 0:00:36]} 5. Nxd4 {[%emt 0:00:07]} Bb4 {[%emt 0:00:16]} 6. g3 {[%emt 0:00:08]} Bxc3+ {[%emt 0:00:55]} 7. bxc3 {[%emt 0:00:06]} Na5 {[%emt 0:00:06]} 8. Qd3 {[%emt 0:00:27]} O-O {[%emt 0:00:24]} 9. Bg2 {[%emt 0:00:42]} d6 {[%emt 0:00:34]} 10. Nb3 {[%emt 0:01:23]} Nc6 {[%emt 0:01:49]} 11. c5 {[%emt 0:00:16]} Ne5 {[%emt 0:09:38]} 12. Qd4 {[%emt 0:01:38]} Re8 {[%emt 0:01:43]} 13. O-O {[%emt 0:03:27]} d5 {[%emt 0:04:27]} 14. Rd1 {[%emt 0:09:08]} c6 {[%emt 0:05:05]} 15. Bf4 {[%emt 0:16:24]} Ng6 {[%emt 0:09:26]} 16. Bg5 {[%emt 0:00:30]} Ne5 {[%emt 0:08:11]} 17. c4 {[%emt 0:10:36]} Bg4 {[%emt 0:13:47]} 18. cxd5 {[%emt 0:18:57]} Bxe2 {[%emt 0:03:16]} 19. Re1 {[%emt 0:00:20]} Nf3+ {[%emt 0:07:42]} 20. Bxf3 {[%emt 0:00:07]} Bxf3 {[%emt 0:00:04]} 21. d6 {[%emt 0:11:56]} Bd5 {[%emt 0:06:31]} 22. f3 {[%emt 0:07:02]} b6 {[%emt 0:04:14]} 23. Rxe8+ {[%emt 0:06:44]} Qxe8 {[%emt 0:00:04]} 24. Kf2 {[%emt 0:00:06]} Qe6 {[%emt 0:06:16]} 25. Re1 {[%emt 0:01:36]} Qf5 {[%emt 0:03:51]} 26. Qf4 {[%emt 0:02:12]} Qxf4 {[%emt 0:03:39]} 27. Bxf4 {[%emt 0:00:18]} Nd7 {[%emt 0:03:42]} 28. Re7 {[%emt 0:02:24]} Rd8 {[%emt 0:01:54]} 29. Be3 {[%emt 0:01:00]} Bxb3 {[%emt 0:01:19]} 30. axb3 {[%emt 0:00:03]} Nxc5 {[%emt 0:01:18]} 31. Bxc5 {[%emt 0:01:33]} bxc5 {[%emt 0:00:03]} 32. Rc7 {[%emt 0:00:08]} Kf8 {[%emt 0:00:48]} 33. Rxc6 {[%emt 0:00:02]} Ke8 {[%emt 0:00:37]} 34. Ra6 {[%emt 0:00:30]} Rb8 {[%emt 0:03:34]} 35. Rxa7 {[%emt 0:00:57]} Rxb3 {[%emt 0:00:54]} 36. Re7+ {[%emt 0:00:08]} Kf8 {[%emt 0:00:29]} 37. Rc7 {[%emt 0:00:07]} Ke8 {[%emt 0:00:13]} 38. Rxc5 {[%emt 0:00:20]} Rd3 {[%emt 0:00:12]} 39. Rc8+ {[%emt 0:00:38]} Kd7 {[%emt 0:00:03]} 40. Rg8 {[%emt 0:00:06]} g6 {[%emt 0:00:38]} 41. Rg7 {[%emt 0:00:03]} Ke6 {[%emt 0:00:08]} 42. Rxh7 {[%emt 0:00:17]} Rxd6 {[%emt 0:00:14]} 43. h4 {[%emt 0:00:28]} Rd2+ {[%emt 0:00:49]} 44. Ke3 {[%emt 0:00:08]} Ra2 {[%emt 0:00:23]} 45. g4 {[%emt 0:02:35]} Ra4 {[%emt 0:00:17]} 46. Rh8 {[%emt 0:00:41]} Kf6 {[%emt 0:00:55]} 47. Rh7 {[%emt 0:00:43]} Rb4 {[%emt 0:00:40]} 48. h5 {[%emt 0:00:28]} gxh5 {[%emt 0:00:08]} 49. Rxh5 {[%emt 0:00:10]} Kg6 {[%emt 0:00:18]} 50. Rd5 {[%emt 0:00:09]} f6 {[%emt 0:00:20]} 51. Rd4 {[%emt 0:00:45]} Rxd4 {[%emt 0:00:22]} 52. Kxd4 {[%emt 0:00:07]} f5 {[%emt 0:00:04]} 1/2-1/2

[Event "Centenario Panaderia Pulido 2023"]
[Site "San Mateo Gran Canaria"]
[Date "2023.12.08"]
[Round "8.3"]
[White "Moreno Diepa, Diego"]
[Black "Kurajica, Bojan"]
[Result "1/2-1/2"]
[ECO "B28"]
[WhiteElo "2138"]
[BlackElo "2446"]
[Annotator "RC"]
[PlyCount "37"]
[EventDate "2023.12.04"]
[EventType "swiss"]
[EventCountry "ESP"]
[SourceTitle "playchess.com"]
[Source "ChessBase"]
[SourceQuality "1"]
[TimeControl "5400+30"]

1. e4 {[%emt 0:01:04]} c5 {[%emt 0:00:05]} 2. Nf3 {[%emt 0:00:03]} a6 {[%emt 0:00:14]} 3. d4 {[%emt 0:00:16]} cxd4 {[%emt 0:00:10]} 4. Nxd4 {[%emt 0:00:05]} Nf6 {[%emt 0:00:15]} 5. Bd3 {[%emt 0:01:10]} e5 {[%emt 0:00:35]} 6. Nb3 {[%emt 0:02:12]} d5 {[%emt 0:00:40]} 7. exd5 {[%emt 0:01:07]} Qxd5 {[%emt 0:09:08]} 8. O-O {[%emt 0:00:57]} Be7 {[%emt 0:03:58]} 9. Nc3 {[%emt 0:00:39]} Qd8 {[%emt 0:00:05]} 10. Qe1 {[%emt 0:07:50]} Nc6 {[%emt 0:00:42]} 11. Bg5 {[%emt 0:01:43]} Be6 {[%emt 0:14:33]} 12. Rd1 {[%emt 0:06:00]} Nd7 {[%emt 0:00:20]} 13. Bxe7 {[%emt 0:01:51]} Qxe7 {[%emt 0:06:37]} 14. Qe2 {[%emt 0:15:45]} O-O {[%emt 0:00:53]} 15. Bc4 {[%emt 0:00:47]} Rac8 {[%emt 0:08:27]} 16. Bxe6 {[%emt 0:01:43]} Qxe6 {[%emt 0:00:09]} 17. Nd5 {[%emt 0:06:18]} Rfe8 {[%emt 0:02:30]} 18. c3 {[%emt 0:03:20]} f5 {[%emt 0:06:07]} 19. Qc4 {[%emt 0:10:36]} 1/2-1/2

[Event "Centenario Panaderia Pulido 2023"]
[Site "San Mateo Gran Canaria"]
[Date "2023.12.08"]
[Round "8.4"]
[White "Hernando Rodrigo, Jose Maria"]
[Black "Larino Nieto, David"]
[Result "0-1"]
[ECO "B27"]
[WhiteElo "2278"]
[BlackElo "2366"]
[Annotator "RC"]
[PlyCount "42"]
[EventDate "2023.12.04"]
[EventType "swiss"]
[EventCountry "ESP"]
[SourceTitle "playchess.com"]
[Source "ChessBase"]
[SourceQuality "1"]
[TimeControl "5400+30"]

1. d4 {[%emt 0:00:30]} e6 {[%emt 0:00:46]} 2. Nf3 {[%emt 0:00:44]} b6 {[%emt 0:00:04]} 3. e4 {[%emt 0:01:50]} Bb7 {[%emt 0:00:15]} 4. Bd3 {[%emt 0:00:09]} c5 {[%emt 0:00:17]} 5. O-O {[%emt 0:01:49]} cxd4 {[%emt 0:04:58]} 6. Nxd4 {[%emt 0:00:11]} Nc6 {[%emt 0:00:01]} 7. Be3 {[%emt 0:02:53]} Nf6 {[%emt 0:00:15]} 8. Nc3 {[%emt 0:01:41]} h5 {[%emt 0:00:15]} 9. Nxc6 {[%emt 0:08:50]} Bxc6 {[%emt 0:11:07]} 10. Bg5 {[%emt 0:00:09]} Qb8 {[%emt 0:03:25]} 11. Bxf6 {[%emt 0:02:03]} gxf6 {[%emt 0:04:02]} 12. Re1 {[%emt 0:12:22]} Qe5 {[%emt 0:04:03]} 13. Qe2 {[%emt 0:09:34]} Bd6 {[%emt 0:01:31]} 14. g3 {[%emt 0:00:11]} h4 {[%emt 0:00:17]} 15. Bb5 {[%emt 0:00:20]} Bb7 {[%emt 0:03:26]} 16. Rad1 {[%emt 0:03:49]} a6 {[%emt 0:12:19]} 17. Qd3 {[%emt 0:21:50]} hxg3 {[%emt 0:04:57]} 18. hxg3 {[%emt 0:00:06]} Bc5 {[%emt 0:07:26]} 19. Kg2 {[%emt 0:04:09]} Qf5 {[%emt 0:00:50]} 20. Bxd7+ {[%emt 0:06:20]} Ke7 {[%emt 0:01:46]} 21. Qf3 {[%emt 0:02:05]} Rh2+ {[%emt 0:39:00]} 0-1

[Event "Centenario Panaderia Pulido 2023"]
[Site "San Mateo Gran Canaria"]
[Date "2023.12.08"]
[Round "8.5"]
[White "Yao, Stefano"]
[Black "Marrero Cardenes, Agustin"]
[Result "1-0"]
[ECO "D65"]
[WhiteElo "2288"]
[BlackElo "2106"]
[Annotator "RC"]
[PlyCount "145"]
[EventDate "2023.12.04"]
[EventType "swiss"]
[EventCountry "ESP"]
[SourceTitle "playchess.com"]
[Source "ChessBase"]
[SourceQuality "1"]
[TimeControl "5400+30"]

1. d4 {[%emt 0:00:14]} Nf6 {[%emt 0:00:12]} 2. c4 {[%emt 0:00:10]} e6 {[%emt 0:00:07]} 3. Nc3 {[%emt 0:01:44]} d5 {[%emt 0:02:04]} 4. Bg5 {[%emt 0:00:46]} Be7 {[%emt 0:00:28]} 5. e3 {[%emt 0:00:37]} Nbd7 {[%emt 0:01:04]} 6. Nf3 {[%emt 0:03:34]} O-O {[%emt 0:01:13]} 7. Rc1 {[%emt 0:01:45]} a6 {[%emt 0:02:01]} 8. cxd5 {[%emt 0:03:42]} exd5 {[%emt 0:00:30]} 9. Bd3 {[%emt 0:00:09]} c6 {[%emt 0:00:53]} 10. Qc2 {[%emt 0:00:10]} Re8 {[%emt 0:01:33]} 11. O-O {[%emt 0:02:13]} h6 {[%emt 0:03:06]} 12. Bf4 {[%emt 0:01:08]} Nf8 {[%emt 0:04:07]} 13. h3 {[%emt 0:02:54]} Bd6 {[%emt 0:02:00]} 14. Rfe1 {[%emt 0:13:27]} Bxf4 {[%emt 0:12:35]} 15. exf4 {[%emt 0:00:02]} Rxe1+ {[%emt 0:00:12]} 16. Rxe1 {[%emt 0:00:08]} Ne8 {[%emt 0:00:09]} 17. Ne2 {[%emt 0:15:14]} Nd6 {[%emt 0:00:50]} 18. Ng3 {[%emt 0:00:23]} Bd7 {[%emt 0:09:52]} 19. Re5 {[%emt 0:11:06]} f6 {[%emt 0:10:33]} 20. Re3 {[%emt 0:02:11]} Qc7 {[%emt 0:00:12]} 21. f5 {[%emt 0:07:14]} Re8 {[%emt 0:01:27]} 22. Nh5 {[%emt 0:04:02]} Rxe3 {[%emt 0:01:30]} 23. fxe3 {[%emt 0:00:07]} Be8 {[%emt 0:00:10]} 24. Nf4 {[%emt 0:00:16]} Qe7 {[%emt 0:00:14]} 25. Kf2 {[%emt 0:00:56]} Bf7 {[%emt 0:00:52]} 26. b3 {[%emt 0:03:26]} Nd7 {[%emt 0:00:27]} 27. Nd2 {[%emt 0:03:07]} Nb6 {[%emt 0:04:41]} 28. g4 {[%emt 0:00:44]} Nd7 {[%emt 0:01:50]} 29. Nf3 {[%emt 0:05:27]} Qe8 {[%emt 0:00:31]} 30. h4 {[%emt 0:00:28]} Qe7 {[%emt 0:00:57]} 31. Nh3 {[%emt 0:01:12]} Qe8 {[%emt 0:02:31]} 32. Nf4 {[%emt 0:04:34]} Qe7 {[%emt 0:00:10]} 33. Qc1 {[%emt 0:08:08]} Nf8 {[%emt 0:03:16]} 34. Ke2 {[%emt 0:00:39]} Qe8 {[%emt 0:05:42]} 35. Qg1 {[%emt 0:01:12]} Nh7 {[%emt 0:00:25]} 36. Nd2 {[%emt 0:02:13]} Qe7 {[%emt 0:00:31]} 37. Qg3 {[%emt 0:00:09]} Nf8 {[%emt 0:00:43]} 38. Qg2 {[%emt 0:00:25]} Nd7 {[%emt 0:04:51]} 39. Kf2 {[%emt 0:00:39]} Nf8 {[%emt 0:00:22]} 40. Nh3 {[%emt 0:00:35]} Nh7 {[%emt 0:00:47]} 41. Qg3 {[%emt 0:00:08]} Qd8 {[%emt 0:00:43]} 42. Ke2 {[%emt 0:00:24]} a5 {[%emt 0:02:34]} 43. Qf4 {[%emt 0:00:36]} Qe7 {[%emt 0:01:31]} 44. Nf3 {[%emt 0:00:13]} b5 {[%emt 0:00:30]} 45. Kf2 {[%emt 0:00:36]} Ne4+ {[%emt 0:02:11]} 46. Bxe4 {[%emt 0:01:46]} dxe4 {[%emt 0:00:07]} 47. Nd2 {[%emt 0:00:34]} Bd5 {[%emt 0:00:05]} 48. Kg3 {[%emt 0:00:34]} a4 {[%emt 0:04:22]} 49. Qb8+ {[%emt 0:00:20]} Nf8 {[%emt 0:00:06]} 50. Nf4 {[%emt 0:00:17]} Qb4 {[%emt 0:01:59]} 51. Ng6 {[%emt 0:00:40]} a3 {[%emt 0:00:44]} 52. Kf4 {[%emt 0:00:42]} Kf7 {[%emt 0:01:14]} 53. Qc7+ {[%emt 0:00:23]} Kg8 {[%emt 0:02:14]} 54. Qd8 {[%emt 0:00:13]} Bf7 {[%emt 0:05:19]} 55. Qxf8+ {[%emt 0:02:07]} Qxf8 {[%emt 0:00:05]} 56. Nxf8 {[%emt 0:00:04]} Kxf8 {[%emt 0:00:06]} 57. Kxe4 {[%emt 0:00:08]} Ke7 {[%emt 0:00:51]} 58. Kd3 {[%emt 0:00:26]} b4 {[%emt 0:01:01]} 59. e4 {[%emt 0:00:06]} Kd7 {[%emt 0:03:06]} 60. Nc4 {[%emt 0:00:06]} Kc7 {[%emt 0:00:19]} 61. Ne3 {[%emt 0:00:13]} Kd6 {[%emt 0:00:35]} 62. Nc4+ {[%emt 0:00:30]} Kc7 {[%emt 0:00:02]} 63. e5 {[%emt 0:00:17]} Bd5 {[%emt 0:00:07]} 64. Ne3 {[%emt 0:00:17]} Kd7 {[%emt 0:01:02]} 65. e6+ {[%emt 0:02:45]} Ke7 {[%emt 0:00:11]} 66. Nc2 {[%emt 0:00:31]} Bf3 {[%emt 0:00:27]} 67. Nxb4 {[%emt 0:00:33]} Bxg4 {[%emt 0:00:14]} 68. Ke4 {[%emt 0:00:14]} Bd1 {[%emt 0:00:39]} 69. Nxc6+ {[%emt 0:00:13]} Kd6 {[%emt 0:00:07]} 70. Nb4 {[%emt 0:00:11]} h5 {[%emt 0:00:33]} 71. Ke3 {[%emt 0:00:31]} g5 {[%emt 0:00:22]} 72. fxg6 {[%emt 0:00:29]} Kxe6 {[%emt 0:00:03]} 73. d5+ {[%emt 0:00:13]} 1-0

[Event "Centenario Panaderia Pulido 2023"]
[Site "San Mateo Gran Canaria"]
[Date "2023.12.08"]
[Round "8.6"]
[White "Estremera Panos, Sergio"]
[Black "Hernandez Leon, Sergio"]
[Result "1/2-1/2"]
[ECO "E14"]
[WhiteElo "2232"]
[BlackElo "2167"]
[Annotator "RC"]
[PlyCount "57"]
[EventDate "2023.12.04"]
[EventType "swiss"]
[EventCountry "ESP"]
[SourceTitle "playchess.com"]
[Source "ChessBase"]
[SourceQuality "1"]
[TimeControl "5400+30"]

1. Nf3 {[%emt 0:02:11]} Nf6 {[%emt 0:00:12]} 2. c4 {[%emt 0:00:14]} e6 {[%emt 0:00:17]} 3. Nc3 {[%emt 0:00:25]} d5 {[%emt 0:00:47]} 4. e3 {[%emt 0:01:20]} c5 {[%emt 0:02:01]} 5. cxd5 {[%emt 0:00:56]} Nxd5 {[%emt 0:00:28]} 6. d4 {[%emt 0:02:21]} cxd4 {[%emt 0:02:22]} 7. exd4 {[%emt 0:00:08]} Be7 {[%emt 0:00:19]} 8. Bd3 {[%emt 0:01:58]} O-O {[%emt 0:04:35]} 9. O-O {[%emt 0:00:29]} b6 {[%emt 0:01:33]} 10. Re1 {[%emt 0:03:05]} Bb7 {[%emt 0:01:39]} 11. a3 {[%emt 0:05:10]} Nd7 {[%emt 0:00:47]} 12. Bc2 {[%emt 0:00:26]} N7f6 {[%emt 0:06:55]} 13. Qd3 {[%emt 0:01:52]} Rc8 {[%emt 0:03:00]} 14. Bg5 {[%emt 0:11:18]} g6 {[%emt 0:02:37]} 15. Bh6 {[%emt 0:00:36]} Re8 {[%emt 0:00:10]} 16. Ba4 {[%emt 0:01:58]} Bc6 {[%emt 0:17:04]} 17. Bxc6 {[%emt 0:01:36]} Rxc6 {[%emt 0:00:04]} 18. Ne5 {[%emt 0:00:10]} Rc8 {[%emt 0:01:16]} 19. Nb5 {[%emt 0:02:39]} a6 {[%emt 0:03:07]} 20. Na7 {[%emt 0:02:34]} Rc7 {[%emt 0:10:31]} 21. Nac6 {[%emt 0:02:06]} Qd6 {[%emt 0:00:37]} 22. Rac1 {[%emt 0:10:26]} b5 {[%emt 0:04:55]} 23. a4 {[%emt 0:27:29]} Nb4 {[%emt 0:14:29]} 24. Nxb4 {[%emt 0:00:52]} Rxc1 {[%emt 0:00:06]} 25. Rxc1 {[%emt 0:00:14]} Qxb4 {[%emt 0:00:05]} 26. Nc6 {[%emt 0:08:15]} Qxb2 {[%emt 0:06:35]} 27. Nxe7+ {[%emt 0:13:12]} Rxe7 28. Bg5 {[%emt 0:00:30]} Kg7 {[%emt 0:17:59]} 29. Qe3 {[%emt 0:00:30]} 1/2-1/2

[Event "Centenario Panaderia Pulido 2023"]
[Site "San Mateo Gran Canaria"]
[Date "2023.12.08"]
[Round "8.7"]
[White "Hernandez Leon, Alberto"]
[Black "Calzetta Ruiz, Monica"]
[Result "0-1"]
[ECO "D33"]
[WhiteElo "2209"]
[BlackElo "2239"]
[Annotator "RC"]
[PlyCount "55"]
[EventDate "2023.12.04"]
[EventType "swiss"]
[EventCountry "ESP"]
[SourceTitle "playchess.com"]
[Source "ChessBase"]
[SourceQuality "1"]
[TimeControl "5400+30"]

1. d4 {[%emt 0:00:54]} d5 {[%emt 0:00:51]} 2. c4 {[%emt 0:00:13]} e6 {[%emt 0:00:08]} 3. Nf3 {[%emt 0:00:13]} c5 {[%emt 0:00:09]} 4. cxd5 {[%emt 0:00:22]} exd5 {[%emt 0:00:06]} 5. g3 {[%emt 0:00:49]} Nc6 {[%emt 0:00:09]} 6. Nc3 {[%emt 0:00:57]} Nf6 {[%emt 0:00:18]} 7. Bg2 {[%emt 0:00:27]} cxd4 {[%emt 0:00:12]} 8. Nxd4 {[%emt 0:00:08]} Bc5 {[%emt 0:00:08]} 9. Nb3 {[%emt 0:02:03]} Bb6 {[%emt 0:00:20]} 10. O-O {[%emt 0:03:00]} d4 {[%emt 0:07:21]} 11. Na4 {[%emt 0:00:38]} O-O {[%emt 0:01:11]} 12. Bg5 {[%emt 0:13:04]} h6 {[%emt 0:00:48]} 13. Bxf6 {[%emt 0:00:28]} Qxf6 {[%emt 0:00:07]} 14. Nxb6 {[%emt 0:00:42]} axb6 {[%emt 0:00:03]} 15. Qd3 {[%emt 0:02:36]} Rd8 {[%emt 0:12:26]} 16. Rfd1 {[%emt 0:10:40]} Ne5 {[%emt 0:19:28]} 17. Qe4 {[%emt 0:03:09]} Bf5 {[%emt 0:02:36]} 18. Qxb7 {[%emt 0:02:13]} Rab8 {[%emt 0:03:59]} 19. Qa6 {[%emt 0:04:58]} d3 {[%emt 0:01:38]} 20. h3 {[%emt 0:05:51]} Bc8 {[%emt 0:15:35]} 21. Qa7 {[%emt 0:16:51]} Bxh3 {[%emt 0:00:28]} 22. Bxh3 {[%emt 0:01:41]} dxe2 {[%emt 0:00:03]} 23. Re1 {[%emt 0:06:56]} Nf3+ {[%emt 0:00:54]} 24. Kg2 {[%emt 0:02:16]} Qc6 {[%emt 0:07:14]} 25. Rxe2 {[%emt 0:04:37]} Nd4+ {[%emt 0:00:12]} 26. Kh2 {[%emt 0:00:06]} Nxe2 {[%emt 0:00:48]} 27. Bg2 {[%emt 0:00:34]} Qf6 {[%emt 0:26:48]} 28. Qa6 {[%emt 0:18:04]} 0-1

[Event "Centenario Panaderia Pulido 2023"]
[Site "San Mateo Gran Canaria"]
[Date "2023.12.08"]
[Round "8.8"]
[White "Gonzalez Martinez, Miguel Angel"]
[Black "Uzcategui Rodriguez, Alejandro"]
[Result "1-0"]
[ECO "C00"]
[WhiteElo "2158"]
[BlackElo "2235"]
[Annotator "RC"]
[PlyCount "77"]
[EventDate "2023.12.04"]
[EventType "swiss"]
[EventCountry "ESP"]
[SourceTitle "playchess.com"]
[Source "ChessBase"]
[SourceQuality "1"]
[TimeControl "5400+30"]

1. e4 {[%emt 0:01:17]} e6 {[%emt 0:00:09]} 2. Qe2 {[%emt 0:00:13]} c5 {[%emt 0:00:05]} 3. Nf3 {[%emt 0:00:07]} Nc6 {[%emt 0:00:08]} 4. c3 {[%emt 0:00:07]} g6 {[%emt 0:01:33]} 5. g3 {[%emt 0:02:30]} Bg7 {[%emt 0:00:22]} 6. Bg2 {[%emt 0:00:05]} Nge7 {[%emt 0:00:19]} 7. O-O {[%emt 0:00:13]} e5 {[%emt 0:12:24]} 8. d3 {[%emt 0:01:31]} O-O {[%emt 0:00:20]} 9. a4 {[%emt 0:01:12]} b6 {[%emt 0:04:29]} 10. Na3 {[%emt 0:00:11]} d6 {[%emt 0:00:18]} 11. Nc4 {[%emt 0:02:12]} Rb8 {[%emt 0:02:08]} 12. Rd1 {[%emt 0:03:22]} f5 {[%emt 0:05:58]} 13. exf5 {[%emt 0:04:05]} gxf5 {[%emt 0:10:05]} 14. Bg5 {[%emt 0:06:14]} Qc7 {[%emt 0:03:00]} 15. Re1 {[%emt 0:01:38]} h6 {[%emt 0:09:55]} 16. Bxe7 {[%emt 0:06:18]} Nxe7 {[%emt 0:01:04]} 17. Nh4 {[%emt 0:00:09]} Bb7 {[%emt 0:06:57]} 18. f4 {[%emt 0:03:11]} Rbe8 {[%emt 0:09:59]} 19. Bxb7 {[%emt 0:00:32]} d5 {[%emt 0:03:48]} 20. Ba6 {[%emt 0:00:53]} exf4 {[%emt 0:01:03]} 21. Qe6+ {[%emt 0:00:50]} Kh7 {[%emt 0:00:26]} 22. Nd6 {[%emt 0:00:48]} Rd8 {[%emt 0:00:57]} 23. Qxe7 {[%emt 0:00:02]} Rd7 {[%emt 0:00:32]} 24. Nb5 {[%emt 0:03:14]} Rxe7 {[%emt 0:00:23]} 25. Nxc7 {[%emt 0:00:02]} Rxc7 {[%emt 0:00:14]} 26. gxf4 {[%emt 0:00:23]} d4 {[%emt 0:02:15]} 27. c4 {[%emt 0:01:05]} Bf6 {[%emt 0:01:45]} 28. Nxf5 {[%emt 0:06:05]} Bd8 {[%emt 0:01:17]} 29. Ng3 {[%emt 0:00:28]} Rxf4 {[%emt 0:00:28]} 30. Rf1 {[%emt 0:00:45]} Rg4 {[%emt 0:00:01]} 31. Rae1 {[%emt 0:00:20]} Bg5 {[%emt 0:01:31]} 32. Re4 {[%emt 0:00:15]} Be3+ {[%emt 0:00:05]} 33. Kh1 {[%emt 0:00:09]} Rg8 {[%emt 0:00:50]} 34. Nf5 {[%emt 0:00:32]} Bg5 {[%emt 0:00:07]} 35. h4 {[%emt 0:00:19]} Bd2 {[%emt 0:01:06]} 36. Ne7 {[%emt 0:02:20]} Rg7 {[%emt 0:01:06]} 37. Nd5 {[%emt 0:00:14]} Rc6 {[%emt 0:00:44]} 38. Nf6+ {[%emt 0:00:07]} Kg6 {[%emt 0:00:14]} 39. Rg4+ {[%emt 0:00:12]} 1-0